[Event "December 5 Early 2023"]
[Site "https://www.chess.com"]
[Date "2023.12.05"]
[Round "8"]
[White "De Souza, Cristiano Gomes"]
[Black "Besso, Guadalupe"]
[Result "0-1"]
[Board "148"]
[TimeControl "180+1"]
[WhiteFideId "2151758"]
[BlackFideId "123161"]
[WhiteElo "2272"]
[BlackElo "2093"]
[WhiteTeam "BRA"]
[BlackTeam "ARG"]
[WhiteClock "0:00:18"]
[BlackClock "0:00:05"]

1. d4 {[%clk 0:02:46]}  Nf6 {[%clk 0:02:54]} 2. c4 {[%clk 0:02:45]}  e6 {[%clk 0:02:49]} 3. Nf3 {[%clk 0:02:45]}  Bb4+ {[%clk 0:02:48]} 4. Bd2 {[%clk 0:02:44]}  Bxd2+ {[%clk 0:02:49]} 5. Qxd2 {[%clk 0:02:44]}  Ne4 {[%clk 0:02:47]} 6. Qc2 {[%clk 0:02:43]}  f5 {[%clk 0:02:46]} 7. Nc3 {[%clk 0:02:43]}  Nxc3 {[%clk 0:02:45]} 8. Qxc3 {[%clk 0:02:41]}  O-O {[%clk 0:02:46]} 9. g3 {[%clk 0:02:41]}  d6 {[%clk 0:02:46]} 10. Bg2 {[%clk 0:02:41]}  Nd7 {[%clk 0:02:46]} 11. O-O {[%clk 0:02:36]}  Qe7 {[%clk 0:02:45]} 12. Rfe1 {[%clk 0:02:34]}  Nf6 {[%clk 0:02:45]} 13. h4 {[%clk 0:02:29]}  Ne4 {[%clk 0:02:43]} 14. Qd3 {[%clk 0:02:27]}  Bd7 {[%clk 0:02:37]} 15. Nd2 {[%clk 0:02:27]}  d5 {[%clk 0:02:32]} 16. Nxe4 {[%clk 0:02:23]}  fxe4 {[%clk 0:02:31]} 17. Qc3 {[%clk 0:02:22]}  Qd6 {[%clk 0:02:16]} 18. Rac1 {[%clk 0:02:18]}  c6 {[%clk 0:02:14]} 19. cxd5 {[%clk 0:02:15]}  exd5 {[%clk 0:02:13]} 20. Qc5 {[%clk 0:02:14]}  Qf6 {[%clk 0:02:07]} 21. Rf1 {[%clk 0:02:13]}  e3 {[%clk 0:01:49]} 22. fxe3 {[%clk 0:02:11]}  Qe6 {[%clk 0:01:45]} 23. Qc3 {[%clk 0:02:09]}  Rxf1+ {[%clk 0:01:41]} 24. Rxf1 {[%clk 0:02:06]}  Re8 {[%clk 0:01:41]} 25. Rf3 {[%clk 0:02:04]}  Qg6 {[%clk 0:01:30]} 26. Kf2 {[%clk 0:01:59]}  h5 {[%clk 0:01:21]} 27. Qd3 {[%clk 0:01:54]}  Qg4 {[%clk 0:01:14]} 28. Rf4 {[%clk 0:01:52]}  Qe6 {[%clk 0:01:09]} 29. e4 {[%clk 0:01:46]}  dxe4 {[%clk 0:01:02]} 30. Bxe4 {[%clk 0:01:44]}  Kh8 {[%clk 0:00:58]} 31. Bg6 {[%clk 0:01:34]}  Rd8 {[%clk 0:00:45]} 32. Bxh5 {[%clk 0:01:33]}  Qh3 {[%clk 0:00:37]} 33. Bf3 {[%clk 0:01:31]}  Qh2+ {[%clk 0:00:33]} 34. Bg2 {[%clk 0:01:21]}  Re8 {[%clk 0:00:20]} 35. Qf3 {[%clk 0:01:15]}  Kg8 {[%clk 0:00:14]} 36. d5 {[%clk 0:01:13]}  Bh3 {[%clk 0:00:14]} 37. Re4 {[%clk 0:01:05]}  Rf8 {[%clk 0:00:13]} 38. Rf4 {[%clk 0:01:05]}  Re8 {[%clk 0:00:13]} 39. e4 {[%clk 0:00:54]}  cxd5 {[%clk 0:00:11]} 40. g4 {[%clk 0:00:41]}  Bxg2 {[%clk 0:00:08]} 41. Qg3 {[%clk 0:00:36]}  Qxg3+ {[%clk 0:00:07]} 42. Kxg3 {[%clk 0:00:36]}  Bxe4 {[%clk 0:00:08]} 43. g5 {[%clk 0:00:36]}  d4 {[%clk 0:00:08]} 44. h5 {[%clk 0:00:33]}  d3 {[%clk 0:00:08]} 45. Kf2 {[%clk 0:00:32]}  d2 {[%clk 0:00:05]} 46. Ke2 {[%clk 0:00:32]}  Rd8 {[%clk 0:00:06]} 47. Rxe4 {[%clk 0:00:18]}  d1=Q+ {[%clk 0:00:05]} 0-1

[Event "December 5 Early 2023"]
[Site "https://www.chess.com"]
[Date "2023.12.05"]
[Round "8"]
[White "Franchini, Gabriele"]
[Black "Minko, Dmitry"]
[Result "1-0"]
[Board "151"]
[TimeControl "180+1"]
[WhiteFideId "806790"]
[BlackFideId "24188468"]
[WhiteElo "2291"]
[BlackElo "2504"]
[WhiteTeam "ITA"]
[BlackTeam "FID"]
[WhiteClock "0:00:09"]
[BlackClock "0:00:15"]

1. e4 {[%clk 0:03:00]}  e5 {[%clk 0:03:00]} 2. Nf3 {[%clk 0:03:01]}  Nc6 {[%clk 0:03:00]} 3. Nc3 {[%clk 0:03:01]}  Nf6 {[%clk 0:03:01]} 4. a3 {[%clk 0:03:02]}  d5 {[%clk 0:03:00]} 5. Bb5 {[%clk 0:03:01]}  dxe4 {[%clk 0:02:35]} 6. Nxe5 {[%clk 0:02:59]}  Bd7 {[%clk 0:02:36]} 7. Bxc6 {[%clk 0:02:50]}  bxc6 {[%clk 0:02:30]} 8. Nxd7 {[%clk 0:02:46]}  Qxd7 {[%clk 0:02:29]} 9. Qe2 {[%clk 0:02:46]}  Bd6 {[%clk 0:01:52]} 10. Nxe4 {[%clk 0:02:42]}  O-O {[%clk 0:01:52]} 11. Nxf6+ {[%clk 0:02:41]}  gxf6 {[%clk 0:01:53]} 12. O-O {[%clk 0:02:39]}  Rae8 {[%clk 0:01:49]} 13. Qf3 {[%clk 0:02:30]}  Re5 {[%clk 0:01:49]} 14. d4 {[%clk 0:02:28]}  Rf5 {[%clk 0:01:49]} 15. Qg4+ {[%clk 0:02:24]}  Kh8 {[%clk 0:01:49]} 16. c3 {[%clk 0:02:00]}  Rg8 {[%clk 0:01:38]} 17. Qh3 {[%clk 0:01:52]}  Qe6 {[%clk 0:01:24]} 18. Be3 {[%clk 0:01:44]}  Qe4 {[%clk 0:01:20]} 19. g3 {[%clk 0:01:20]}  Qf3 {[%clk 0:01:20]} 20. Qg2 {[%clk 0:01:15]}  Qg4 {[%clk 0:01:20]} 21. Rae1 {[%clk 0:01:01]}  Rf3 {[%clk 0:01:10]} 22. Bc1 {[%clk 0:00:54]}  f5 {[%clk 0:01:09]} 23. Re3 {[%clk 0:00:50]}  Rxe3 {[%clk 0:01:10]} 24. fxe3 {[%clk 0:00:45]}  Rg5 {[%clk 0:00:57]} 25. e4 {[%clk 0:00:35]}  fxe4 {[%clk 0:00:52]} 26. Bxg5 {[%clk 0:00:33]}  Qxg5 {[%clk 0:00:49]} 27. Qxe4 {[%clk 0:00:20]}  Kg7 {[%clk 0:00:49]} 28. Qf3 {[%clk 0:00:18]}  f6 {[%clk 0:00:45]} 29. Re1 {[%clk 0:00:17]}  c5 {[%clk 0:00:35]} 30. Re2 {[%clk 0:00:17]}  cxd4 {[%clk 0:00:35]} 31. cxd4 {[%clk 0:00:18]}  h5 {[%clk 0:00:27]} 32. Kh1 {[%clk 0:00:12]}  Qc1+ {[%clk 0:00:20]} 33. Kg2 {[%clk 0:00:11]}  Qg5 {[%clk 0:00:21]} 34. Qe3 {[%clk 0:00:08]}  Qg4 {[%clk 0:00:20]} 35. Qe4 {[%clk 0:00:07]}  Qg5 {[%clk 0:00:20]} 36. Qh4 {[%clk 0:00:05]}  Qg6 {[%clk 0:00:19]} 37. Rf2 {[%clk 0:00:05]}  Kf7 {[%clk 0:00:18]} 38. d5 {[%clk 0:00:04]}  Kg7 {[%clk 0:00:18]} 39. Qc4 {[%clk 0:00:04]}  Qg5 {[%clk 0:00:17]} 40. Qd4 {[%clk 0:00:03]}  h4 {[%clk 0:00:16]} 41. Qd3 {[%clk 0:00:02]}  Qg4 {[%clk 0:00:14]} 42. h3 {[%clk 0:00:02]}  Qg5 {[%clk 0:00:12]} 43. g4 {[%clk 0:00:02]}  Qc1 {[%clk 0:00:11]} 44. Qf3 {[%clk 0:00:01]}  Qh6 {[%clk 0:00:10]} 45. Qf5 {[%clk 0:00:01]}  Qg5 {[%clk 0:00:10]} 46. Qxg5+ {[%clk 0:00:01]}  fxg5 {[%clk 0:00:11]} 47. Rf5 {[%clk 0:00:02]}  Bf4 {[%clk 0:00:11]} 48. Kf3 {[%clk 0:00:03]}  Kg6 {[%clk 0:00:12]} 49. Ke4 {[%clk 0:00:04]}  Bd6 {[%clk 0:00:11]} 50. Kd3 {[%clk 0:00:05]}  Bg3 {[%clk 0:00:11]} 51. b3 {[%clk 0:00:05]}  Bd6 {[%clk 0:00:12]} 52. a4 {[%clk 0:00:06]}  a6 {[%clk 0:00:12]} 53. Kc4 {[%clk 0:00:07]}  a5 {[%clk 0:00:13]} 54. Kb5 {[%clk 0:00:07]}  Bb4 {[%clk 0:00:14]} 55. Kc6 {[%clk 0:00:07]}  Bd6 {[%clk 0:00:15]} 56. Kd7 {[%clk 0:00:07]}  Bg3 {[%clk 0:00:14]} 57. Kc8 {[%clk 0:00:07]}  Bd6 {[%clk 0:00:15]} 58. Kb7 {[%clk 0:00:08]}  Kh6 {[%clk 0:00:12]} 59. Ka6 {[%clk 0:00:09]}  Bb4 {[%clk 0:00:12]} 60. Rf7 {[%clk 0:00:08]}  Bd6 {[%clk 0:00:12]} 61. Kxa5 {[%clk 0:00:08]}  Kg6 {[%clk 0:00:12]} 62. Rf5 {[%clk 0:00:08]}  Bf4 {[%clk 0:00:12]} 63. Kb5 {[%clk 0:00:08]}  Bd2 {[%clk 0:00:13]} 64. Kc6 {[%clk 0:00:08]}  Be3 {[%clk 0:00:14]} 65. a5 {[%clk 0:00:08]}  Bf4 {[%clk 0:00:15]} 66. a6 {[%clk 0:00:08]}  Be3 {[%clk 0:00:15]} 67. b4 {[%clk 0:00:08]}  Bd2 {[%clk 0:00:15]} 68. b5 {[%clk 0:00:08]}  Be3 {[%clk 0:00:16]} 69. Kxc7 {[%clk 0:00:08]}  Bc5 {[%clk 0:00:15]} 70. b6 {[%clk 0:00:09]} 1-0

[Event "December 5 Early 2023"]
[Site "https://www.chess.com"]
[Date "2023.12.05"]
[Round "8"]
[White "Shinkarev, M"]
[Black "Sarkar, Justin"]
[Result "1-0"]
[Board "152"]
[TimeControl "180+1"]
[WhiteFideId "4145348"]
[BlackFideId "2010011"]
[WhiteElo "2482"]
[BlackElo "2289"]
[WhiteTeam "RUS"]
[BlackTeam "USA"]
[WhiteClock "0:01:20"]
[BlackClock "0:00:00"]

1. c4 {[%clk 0:03:00]}  Nf6 {[%clk 0:02:43]} 2. g3 {[%clk 0:02:59]}  d6 {[%clk 0:02:38]} 3. d4 {[%clk 0:02:58]}  c5 {[%clk 0:02:28]} 4. e3 {[%clk 0:02:53]}  g6 {[%clk 0:02:21]} 5. Bg2 {[%clk 0:02:53]}  Bg7 {[%clk 0:02:20]} 6. Ne2 {[%clk 0:02:53]}  O-O {[%clk 0:02:15]} 7. Nbc3 {[%clk 0:02:53]}  Nc6 {[%clk 0:02:13]} 8. O-O {[%clk 0:02:53]}  Bd7 {[%clk 0:02:10]} 9. h3 {[%clk 0:02:52]}  Rc8 {[%clk 0:02:08]} 10. b3 {[%clk 0:02:51]}  a6 {[%clk 0:02:05]} 11. Ba3 {[%clk 0:02:51]}  Qa5 {[%clk 0:02:01]} 12. Bb2 {[%clk 0:02:46]}  b5 {[%clk 0:01:56]} 13. cxb5 {[%clk 0:02:44]}  axb5 {[%clk 0:01:55]} 14. dxc5 {[%clk 0:02:29]}  dxc5 {[%clk 0:01:51]} 15. Ne4 {[%clk 0:02:22]}  Rfd8 {[%clk 0:01:18]} 16. Nxf6+ {[%clk 0:02:14]}  Bxf6 {[%clk 0:01:18]} 17. Bxf6 {[%clk 0:02:10]}  exf6 {[%clk 0:01:18]} 18. Qc2 {[%clk 0:02:10]}  Nb4 {[%clk 0:01:12]} 19. Qb2 {[%clk 0:02:10]}  Qb6 {[%clk 0:01:07]} 20. Nf4 {[%clk 0:02:05]}  Bf5 {[%clk 0:01:00]} 21. Rfd1 {[%clk 0:01:56]}  Nd3 {[%clk 0:00:49]} 22. Nxd3 {[%clk 0:01:49]}  Bxd3 {[%clk 0:00:49]} 23. Qc3 {[%clk 0:01:46]}  c4 {[%clk 0:00:42]} 24. b4 {[%clk 0:01:45]}  Qe6 {[%clk 0:00:39]} 25. a4 {[%clk 0:01:39]}  bxa4 {[%clk 0:00:37]} 26. Rxa4 {[%clk 0:01:40]}  Qe5 {[%clk 0:00:16]} 27. Rc1 {[%clk 0:01:39]}  Qxc3 {[%clk 0:00:11]} 28. Rxc3 {[%clk 0:01:40]}  Rb8 {[%clk 0:00:10]} 29. Bc6 {[%clk 0:01:34]}  f5 {[%clk 0:00:05]} 30. b5 {[%clk 0:01:34]}  Rb6 {[%clk 0:00:03]} 31. Ra7 {[%clk 0:01:33]}  Be4 {[%clk 0:00:02]} 32. Bxe4 {[%clk 0:01:27]}  fxe4 {[%clk 0:00:01]} 33. Rxc4 {[%clk 0:01:26]}  Rxb5 {[%clk 0:00:02]} 34. Rxe4 {[%clk 0:01:26]}  Rf5 {[%clk 0:00:02]} 35. Kg2 {[%clk 0:01:21]}  h5 {[%clk 0:00:01]} 36. h4 {[%clk 0:01:20]}  Rf6 {[%clk 0:00:01]} 37. Ra5 {[%clk 0:01:19]}  Rdd6 {[%clk 0:00:01]} 38. Raa4 {[%clk 0:01:19]}  Rd2 {[%clk 0:00:01]} 39. Rf4 {[%clk 0:01:19]}  Rxf4 {[%clk 0:00:02]} 40. Rxf4 {[%clk 0:01:20]}  Rc2 {[%clk 0:00:01]} 41. Rd4 {[%clk 0:01:20]}  Kg7 {[%clk 0:00:02]} 42. Kf3 {[%clk 0:01:20]}  Rb2 {[%clk 0:00:02]} 43. Rd7 {[%clk 0:01:20]}  Rc2 {[%clk 0:00:01]} 44. Rb7 {[%clk 0:01:20]}  Rd2 {[%clk 0:00:01]} 45. Rc7 {[%clk 0:01:20]}  Rb2 {[%clk 0:00:00]} 46. Kg2 {[%clk 0:01:20]} 1-0

[Event "December 5 Early 2023"]
[Site "https://www.chess.com"]
[Date "2023.12.05"]
[Round "8"]
[White "Rodriguez Santiago, Jaime"]
[Black "Lopusiewicz, Piotr"]
[Result "1-0"]
[Board "154"]
[TimeControl "180+1"]
[WhiteFideId "3100898"]
[BlackFideId "1116029"]
[WhiteElo "2267"]
[BlackElo "2434"]
[WhiteTeam "PUR"]
[BlackTeam "POL"]
[WhiteClock "0:00:13"]
[BlackClock "0:00:00"]

1. d4 {[%clk 0:03:00]}  Nf6 {[%clk 0:02:59]} 2. c4 {[%clk 0:03:00]}  e6 {[%clk 0:03:00]} 3. Nc3 {[%clk 0:02:59]}  d5 {[%clk 0:03:00]} 4. cxd5 {[%clk 0:02:58]}  exd5 {[%clk 0:03:00]} 5. Bg5 {[%clk 0:02:59]}  Be7 {[%clk 0:03:00]} 6. e3 {[%clk 0:02:59]}  h6 {[%clk 0:03:01]} 7. Bh4 {[%clk 0:02:58]}  O-O {[%clk 0:03:00]} 8. Bd3 {[%clk 0:02:58]}  c6 {[%clk 0:03:01]} 9. Nge2 {[%clk 0:02:58]}  Nbd7 {[%clk 0:03:00]} 10. Qc2 {[%clk 0:02:58]}  Re8 {[%clk 0:03:00]} 11. O-O {[%clk 0:02:58]}  Ne4 {[%clk 0:02:56]} 12. Bxe7 {[%clk 0:02:56]}  Qxe7 {[%clk 0:02:56]} 13. Rae1 {[%clk 0:02:55]}  Nd6 {[%clk 0:02:53]} 14. Ng3 {[%clk 0:02:51]}  Qh4 {[%clk 0:02:46]} 15. f3 {[%clk 0:02:39]}  Nf6 {[%clk 0:02:43]} 16. e4 {[%clk 0:02:27]}  dxe4 {[%clk 0:02:43]} 17. fxe4 {[%clk 0:02:27]}  Ng4 {[%clk 0:02:39]} 18. h3 {[%clk 0:02:15]}  Qxg3 {[%clk 0:02:39]} 19. hxg4 {[%clk 0:02:15]}  Bxg4 {[%clk 0:02:19]} 20. e5 {[%clk 0:02:12]}  c5 {[%clk 0:02:10]} 21. dxc5 {[%clk 0:01:39]}  Nc8 {[%clk 0:01:45]} 22. Bc4 {[%clk 0:01:29]}  Be6 {[%clk 0:01:38]} 23. Ne4 {[%clk 0:01:21]}  Qh4 {[%clk 0:01:19]} 24. Bxe6 {[%clk 0:01:16]}  Rxe6 {[%clk 0:01:17]} 25. Nd6 {[%clk 0:01:15]}  Nxd6 {[%clk 0:01:11]} 26. cxd6 {[%clk 0:01:14]}  Rxe5 {[%clk 0:01:10]} 27. Rxe5 {[%clk 0:01:06]}  Qd4+ {[%clk 0:01:10]} 28. Qf2 {[%clk 0:01:07]}  Qxe5 {[%clk 0:01:10]} 29. Qxf7+ {[%clk 0:01:07]}  Kh7 {[%clk 0:01:04]} 30. d7 {[%clk 0:01:04]}  Rd8 {[%clk 0:00:58]} 31. Rd1 {[%clk 0:01:00]}  Qxb2 {[%clk 0:00:50]} 32. Qf5+ {[%clk 0:00:56]}  Kh8 {[%clk 0:00:24]} 33. Qd5 {[%clk 0:00:41]}  Qb6+ {[%clk 0:00:17]} 34. Kh1 {[%clk 0:00:41]}  Qc6 {[%clk 0:00:18]} 35. Qd3 {[%clk 0:00:37]}  a5 {[%clk 0:00:17]} 36. Qf5 {[%clk 0:00:37]}  b6 {[%clk 0:00:14]} 37. Qf7 {[%clk 0:00:26]}  Qf6 {[%clk 0:00:13]} 38. Qe8+ {[%clk 0:00:24]}  Kh7 {[%clk 0:00:13]} 39. Qe4+ {[%clk 0:00:25]}  Qg6 {[%clk 0:00:12]} 40. Qe2 {[%clk 0:00:21]}  Qf5 {[%clk 0:00:10]} 41. Qd2 {[%clk 0:00:17]}  a4 {[%clk 0:00:09]} 42. Kg1 {[%clk 0:00:16]}  b5 {[%clk 0:00:09]} 43. Qd6 {[%clk 0:00:15]}  h5 {[%clk 0:00:03]} 44. Qe7 {[%clk 0:00:15]}  Qf6 {[%clk 0:00:02]} 45. Qd6 {[%clk 0:00:13]}  Qxd6 {[%clk 0:00:02]} 46. Rxd6 {[%clk 0:00:13]}  Kg8 {[%clk 0:00:03]} 47. Rb6 {[%clk 0:00:12]}  Rxd7 {[%clk 0:00:03]} 48. Rxb5 {[%clk 0:00:12]}  Rd2 {[%clk 0:00:02]} 49. Rxh5 {[%clk 0:00:12]}  Rxa2 {[%clk 0:00:02]} 50. Ra5 {[%clk 0:00:13]}  Kf7 {[%clk 0:00:01]} 51. Kh2 {[%clk 0:00:13]}  a3 {[%clk 0:00:02]} 52. Kg3 {[%clk 0:00:14]}  Ke6 {[%clk 0:00:00]} 53. Kf3 {[%clk 0:00:13]} 1-0

[Event "December 5 Early 2023"]
[Site "https://www.chess.com"]
[Date "2023.12.05"]
[Round "8"]
[White "Dyulgerov, Volen"]
[Black "Shevchuk, Olexandr"]
[Result "1-0"]
[Board "155"]
[TimeControl "180+1"]
[WhiteFideId "2918978"]
[BlackFideId "14113775"]
[WhiteElo "2245"]
[BlackElo "2432"]
[WhiteTeam "BUL"]
[BlackTeam "UKR"]
[WhiteClock "0:02:12"]
[BlackClock "0:02:33"]

1. e4 {[%clk 0:03:00]}  c5 {[%clk 0:02:59]} 2. Nf3 {[%clk 0:03:01]}  e6 {[%clk 0:02:59]} 3. d4 {[%clk 0:03:01]}  cxd4 {[%clk 0:03:00]} 4. c3 {[%clk 0:03:00]}  Nc6 {[%clk 0:03:01]} 5. cxd4 {[%clk 0:03:00]}  Nce7 {[%clk 0:03:00]} 6. d5 {[%clk 0:02:59]}  exd5 {[%clk 0:02:54]} 7. exd5 {[%clk 0:03:00]}  Nf6 {[%clk 0:02:54]} 8. d6 {[%clk 0:02:58]}  Nf5 {[%clk 0:02:55]} 9. Qe2+ {[%clk 0:02:57]}  Ne7 {[%clk 0:02:52]} 10. Nc3 {[%clk 0:02:53]}  Qa5 {[%clk 0:02:47]} 11. Bd2 {[%clk 0:02:36]}  Qb6 {[%clk 0:02:48]} 12. Nb5 {[%clk 0:02:29]}  Rb8 {[%clk 0:02:38]} 13. Ng5 {[%clk 0:02:13]}  a6 {[%clk 0:02:33]} 14. Nc7+ {[%clk 0:02:12]} 1-0

[Event "December 5 Early 2023"]
[Site "https://www.chess.com"]
[Date "2023.12.05"]
[Round "8"]
[White "Miszler, Levente"]
[Black "Osmonbekov, Talaibek"]
[Result "0-1"]
[Board "158"]
[TimeControl "180+1"]
[WhiteFideId "763276"]
[BlackFideId "2017253"]
[WhiteElo "2417"]
[BlackElo "2201"]
[WhiteTeam "HUN"]
[BlackTeam "USA"]
[WhiteClock "0:02:26"]
[BlackClock "0:02:01"]

1. e4 {[%clk 0:03:00]}  c5 {[%clk 0:03:00]} 2. Nc3 {[%clk 0:02:57]}  Nc6 {[%clk 0:02:59]} 3. f4 {[%clk 0:02:55]}  e6 {[%clk 0:02:55]} 4. Nf3 {[%clk 0:02:55]}  d5 {[%clk 0:02:55]} 5. Bb5 {[%clk 0:02:48]}  Ne7 {[%clk 0:02:46]} 6. d4 {[%clk 0:02:46]}  a6 {[%clk 0:02:39]} 7. Bxc6+ {[%clk 0:02:41]}  Nxc6 {[%clk 0:02:34]} 8. exd5 {[%clk 0:02:41]}  exd5 {[%clk 0:02:30]} 9. dxc5 {[%clk 0:02:41]}  Bxc5 {[%clk 0:02:28]} 10. Qxd5 {[%clk 0:02:40]}  O-O {[%clk 0:02:13]} 11. Qxd8 {[%clk 0:02:39]}  Rxd8 {[%clk 0:02:13]} 12. Bd2 {[%clk 0:02:33]}  Re8+ {[%clk 0:02:11]} 13. Kd1 {[%clk 0:02:32]}  Bg4 {[%clk 0:02:10]} 14. Ne2 {[%clk 0:02:29]}  Rad8 {[%clk 0:02:03]} 15. Ke1 {[%clk 0:02:26]}  Bxf3 {[%clk 0:02:01]} 16. gxf3 {[%clk 0:02:26]}  Nd4 {[%clk 0:02:01]} 0-1

[Event "December 5 Early 2023"]
[Site "https://www.chess.com"]
[Date "2023.12.05"]
[Round "8"]
[White "Chemin, Justo Reinaldo"]
[Black "Rosh Jain"]
[Result "1-0"]
[Board "159"]
[TimeControl "180+1"]
[WhiteFideId "2101580"]
[BlackFideId "25789465"]
[WhiteElo "2219"]
[BlackElo "2397"]
[WhiteTeam "BRA"]
[BlackTeam "IND"]
[WhiteClock "0:02:37"]
[BlackClock "0:02:26"]

1. e4 {[%clk 0:03:00]}  c5 {[%clk 0:02:59]} 2. Nf3 {[%clk 0:03:00]}  d6 {[%clk 0:02:50]} 3. d4 {[%clk 0:02:59]}  cxd4 {[%clk 0:02:48]} 4. Nxd4 {[%clk 0:03:00]}  Nf6 {[%clk 0:02:48]} 5. Nc3 {[%clk 0:03:00]}  a6 {[%clk 0:02:48]} 6. Bg5 {[%clk 0:02:58]}  e6 {[%clk 0:02:48]} 7. f4 {[%clk 0:02:58]}  Be7 {[%clk 0:02:48]} 8. Qf3 {[%clk 0:02:58]}  Qc7 {[%clk 0:02:49]} 9. O-O-O {[%clk 0:02:57]}  Nbd7 {[%clk 0:02:48]} 10. Rd2 {[%clk 0:02:56]}  b5 {[%clk 0:02:45]} 11. e5 {[%clk 0:02:56]}  Bb7 {[%clk 0:02:45]} 12. exf6 {[%clk 0:02:56]}  Bxf3 {[%clk 0:02:44]} 13. fxe7 {[%clk 0:02:56]}  Bb7 {[%clk 0:02:37]} 14. Ndxb5 {[%clk 0:02:53]}  axb5 {[%clk 0:02:35]} 15. Nxb5 {[%clk 0:02:52]}  Qb6 {[%clk 0:02:28]} 16. Nxd6+ {[%clk 0:02:49]}  Qxd6 {[%clk 0:02:29]} 17. Rxd6 {[%clk 0:02:50]}  Rxa2 {[%clk 0:02:28]} 18. Kb1 {[%clk 0:02:48]}  Ra8 {[%clk 0:02:25]} 19. Bb5 {[%clk 0:02:47]}  Bc8 {[%clk 0:02:26]} 20. Rhd1 {[%clk 0:02:37]}  Ra7 {[%clk 0:02:26]} 1-0

[Event "December 5 Early 2023"]
[Site "https://www.chess.com"]
[Date "2023.12.05"]
[Round "8"]
[White "Zampronha, Wladimir Camilo"]
[Black "Michalski, Olaf"]
[Result "0-1"]
[Board "160"]
[TimeControl "180+1"]
[WhiteFideId "2103087"]
[BlackFideId "1106740"]
[WhiteElo "2370"]
[BlackElo "2187"]
[WhiteTeam "BRA"]
[BlackTeam "POL"]
[WhiteClock "0:02:25"]
[BlackClock "0:01:54"]

1. e4 {[%clk 0:03:00]}  c5 {[%clk 0:02:57]} 2. Nf3 {[%clk 0:03:00]}  a6 {[%clk 0:02:57]} 3. Nc3 {[%clk 0:02:59]}  d6 {[%clk 0:02:56]} 4. d4 {[%clk 0:03:00]}  cxd4 {[%clk 0:02:56]} 5. Nxd4 {[%clk 0:03:00]}  Nf6 {[%clk 0:02:56]} 6. Bg5 {[%clk 0:02:59]}  Nbd7 {[%clk 0:02:55]} 7. f4 {[%clk 0:02:59]}  Qb6 {[%clk 0:02:53]} 8. Qd2 {[%clk 0:02:57]}  Qxb2 {[%clk 0:02:50]} 9. Rb1 {[%clk 0:02:53]}  Qa3 {[%clk 0:02:50]} 10. Bc4 {[%clk 0:02:39]}  e6 {[%clk 0:02:42]} 11. O-O {[%clk 0:02:37]}  Qc5 {[%clk 0:02:30]} 12. Kh1 {[%clk 0:02:36]}  Qxc4 {[%clk 0:02:28]} 13. f5 {[%clk 0:02:28]}  Ne5 {[%clk 0:02:14]} 14. Bxf6 {[%clk 0:02:27]}  gxf6 {[%clk 0:02:14]} 15. fxe6 {[%clk 0:02:27]}  fxe6 {[%clk 0:02:11]} 16. Rf5 {[%clk 0:02:27]}  exf5 {[%clk 0:01:54]} 17. exf5 {[%clk 0:02:25]} 0-1

[Event "December 5 Early 2023"]
[Site "https://www.chess.com"]
[Date "2023.12.05"]
[Round "8"]
[White "Barath1308"]
[Black "Pertinez Soria, Juan Luis"]
[Result "1-0"]
[Board "161"]
[TimeControl "180+1"]
[BlackFideId "2225620"]
[WhiteElo "2342"]
[BlackElo "2168"]
[BlackTeam "ESP"]
[WhiteClock "0:00:56"]
[BlackClock "0:01:16"]

1. d4 {[%clk 0:03:00]}  e6 {[%clk 0:02:58]} 2. Nf3 {[%clk 0:03:00]}  Nf6 {[%clk 0:02:56]} 3. c4 {[%clk 0:02:59]}  b6 {[%clk 0:02:54]} 4. g3 {[%clk 0:02:59]}  Bb7 {[%clk 0:02:54]} 5. Bg2 {[%clk 0:02:59]}  Bb4+ {[%clk 0:02:51]} 6. Nbd2 {[%clk 0:02:57]}  O-O {[%clk 0:02:49]} 7. O-O {[%clk 0:02:57]}  c5 {[%clk 0:02:47]} 8. Nb3 {[%clk 0:02:43]}  cxd4 {[%clk 0:02:46]} 9. Nbxd4 {[%clk 0:02:41]}  a6 {[%clk 0:02:46]} 10. Bf4 {[%clk 0:02:33]}  d6 {[%clk 0:02:45]} 11. Nc2 {[%clk 0:02:11]}  e5 {[%clk 0:02:41]} 12. Bg5 {[%clk 0:02:10]}  Bc5 {[%clk 0:02:40]} 13. b4 {[%clk 0:02:09]}  Bd4 {[%clk 0:02:40]} 14. Ncxd4 {[%clk 0:02:08]}  exd4 {[%clk 0:02:40]} 15. Qxd4 {[%clk 0:02:09]}  Nc6 {[%clk 0:02:37]} 16. Qb2 {[%clk 0:02:06]}  h6 {[%clk 0:02:33]} 17. Bxf6 {[%clk 0:02:05]}  gxf6 {[%clk 0:02:34]} 18. Rad1 {[%clk 0:02:04]}  Qe7 {[%clk 0:02:33]} 19. e3 {[%clk 0:02:03]}  Rad8 {[%clk 0:02:33]} 20. Nd4 {[%clk 0:02:02]}  Ne5 {[%clk 0:02:29]} 21. Nf5 {[%clk 0:01:57]}  Qc7 {[%clk 0:02:26]} 22. Rd4 {[%clk 0:01:24]}  Nf3+ {[%clk 0:02:15]} 23. Bxf3 {[%clk 0:01:23]}  Bxf3 {[%clk 0:02:16]} 24. Qd2 {[%clk 0:01:12]}  d5 {[%clk 0:02:07]} 25. e4 {[%clk 0:01:09]}  Bg4 {[%clk 0:01:58]} 26. Qxh6 {[%clk 0:01:07]}  Bxf5 {[%clk 0:01:57]} 27. exf5 {[%clk 0:01:07]}  Qxc4 {[%clk 0:01:47]} 28. Rxc4 {[%clk 0:01:03]}  dxc4 {[%clk 0:01:48]} 29. Qxf6 {[%clk 0:01:04]}  Rd5 {[%clk 0:01:29]} 30. Re1 {[%clk 0:00:56]}  Rfd8 {[%clk 0:01:16]} 31. Re4 {[%clk 0:00:56]} 1-0